[Event "Romanian Rapid Open 2022"]
[Site "Sebes"]
[Date "2022.12.02"]
[Round "4.4"]
[White "Stoleriu, George"]
[Black "Miron, Lucian-Costin"]
[Result "0-1"]
[ECO "B23"]
[WhiteElo "2389"]
[BlackElo "2510"]
[Annotator "TA"]
[PlyCount "110"]
[EventDate "2022.12.02"]
[EventType "rapid"]
[EventCountry "ROU"]
[SourceTitle "playchess.com"]
[Source "ChessBase"]
[SourceQuality "1"]
[TimeControl "600+5"]

{[%evp 12,110,12,14,17,4,58,7,18,2,62,56,58,50,39,41,46,61,51,44,60,7,43,10,51,50,53,27,39,30,36,29,39,35,22,14,50,45,42,12,62,54,52,52,49,57,53,59,57,29,51,46,50,58,54,53,66,0,26,0,0,0,0,0,0,-12,0,0,0,0,0,0,0,0,0,0,0,0,0,0,0,0,0,-8,0,0,0,0,0,-8,-8,-29955,-29955,-6379,-5065,-29966,-12719,-7179,-6399,-4956,-4927]} 1. e4 {[%emt 0:00:01]} c5 {[%emt 0:00:00]} 2. Nc3 {[%emt 0:00:01]} a6 {[%emt 0:00:02]} 3. f4 {[%emt 0:00:06]} b5 {[%emt 0:00:01]} 4. Nf3 {[%emt 0:00:27]} Bb7 {[%emt 0:00:01]} 5. d3 {[%emt 0:00:03]} e6 {[%emt 0:00:12]} 6. g3 {[%emt 0:00:13]} Nf6 {[%emt 0:01:09]} 7. Bg2 {[%emt 0:00:02]} d5 {[%emt 0:00:00][%cal Rd5e4] B23: Closed Sicilian: Lines without g3.} 8. e5 {[%emt 0:00:04] Hoping for f5.} Ng8 {[%emt 0:00:04]} (8... Nfd7 $11) 9. d4 {[%emt 0:00:08] [#]} (9. f5 $14 exf5 10. O-O) 9... Nh6 $146 {[%emt 0:00:43] The position is equal.} ({Predecessor:} 9... g6 10. Be3 Qb6 11. dxc5 Bxc5 12. Bxc5 Qxc5 13. Qd4 Nd7 14. a3 Ne7 15. Qxc5 Nxc5 {0-1 (32) Bowler,J-Giroyan,G (2041) Mureck 2008}) 10. Ne2 {[%emt 0:00:25]} cxd4 {[%emt 0:00:27]} (10... Nc6 $11) 11. Nexd4 $14 {[%emt 0:00:06]} Nc6 {[%emt 0:00:53]} 12. Nxc6 {[%emt 0:00:08]} Bxc6 {[%emt 0:00:02]} 13. Nd4 {[%emt 0:00:02]} Bd7 {[%emt 0:01:31]} 14. Be3 {[%emt 0:00:19]} Rc8 {[%emt 0:00:16]} 15. O-O {[%emt 0:00:21]} Bc5 {[%emt 0:00:01]} 16. Kh1 {[%emt 0:01:33]} (16. c3 $14) 16... O-O {[%emt 0:00:02]} 17. Qe2 {[%emt 0:00:33]} f6 {[%emt 0:02:28]} (17... b4 $5 {[%cal Rc5d4]}) 18. exf6 {[%emt 0:01:50]} Qxf6 {[%emt 0:00:02]} 19. Rad1 {[%emt 0:00:02]} Nf5 {[%emt 0:00:56]} 20. Nxf5 {[%emt 0:00:33]} Qxf5 {[%emt 0:00:02]} 21. c3 {[%emt 0:01:02]} a5 {[%emt 0:01:17]} 22. Bxc5 {[%emt 0:00:51]} Rxc5 {[%emt 0:00:02]} 23. g4 {[%emt 0:00:10]} Qf7 {[%emt 0:00:15]} 24. Qe3 {[%emt 0:00:10]} Rfc8 {[%emt 0:00:02]} 25. f5 {[%emt 0:00:19]} b4 {[%emt 0:00:12]} ({Black should play} 25... exf5 $11 26. gxf5 Qf6) 26. cxb4 $1 {[%emt 0:00:11]} axb4 {[%emt 0:00:01][%cal Re6f5]} 27. fxe6 {[%emt 0:00:02]} Qxe6 {[%emt 0:00:01]} 28. Qd4 {[%emt 0:00:01][%csl LRb4,LRd5]} b3 {[%emt 0:01:00]} 29. axb3 {[%emt 0:00:08]} (29. Bxd5 $2 Rxd5 $1 {[%mdl 512]} 30. Qxd5 Bc6 $19) 29... h6 {[%emt 0:00:01]} (29... Bb5 $2 30. Rfe1 (30. Bxd5 $2 Rxd5 31. Qxd5 Bc6 $19) 30... Qd7 31. Re5 $16 (31. Bxd5+ $2 Qxd5+ 32. Qxd5+ Rxd5 $19)) 30. Rf5 {[%emt 0:01:38][%cal Rf5d5]} (30. Bxd5 $2 {[#] loses.} Rxd5 $1 {[%mdl 512]} 31. Qxd5 Bc6 $19) 30... Kh8 {[%emt 0:00:04]} 31. Rxd5 {[%emt 0:00:51]} ({Much worse is} 31. Bxd5 Rxd5 32. Rxd5 (32. Qxd5 $2 {perishes.} Bc6 $19) 32... Bc6 $15) 31... Rxd5 {[%emt 0:00:10]} 32. Qxd5 {[%emt 0:00:13]} Qxd5 {[%emt 0:00:10]} 33. Bxd5 {[%emt 0:00:02]} Bxg4 {[%emt 0:00:02][%mdl 4096] Endgame KRB-KRB} 34. Rg1 {[%emt 0:00:11]} ({White should try} 34. Ra1 $1 $14) 34... h5 {[%emt 0:00:12]} 35. Re1 {[%emt 0:00:06]} Rd8 {[%emt 0:00:19]} 36. Bc6 {[%emt 0:00:05]} Rd2 {[%emt 0:00:04]} 37. b4 {[%emt 0:00:02]} Rxb2 {[%emt 0:00:03]} 38. b5 {[%emt 0:00:01]} Kh7 {[%emt 0:00:09]} 39. Kg1 {[%emt 0:00:04]} Kh6 {[%emt 0:00:02]} 40. Re5 {[%emt 0:00:05]} g6 {[%emt 0:00:07]} 41. Rc5 {[%emt 0:00:09]} h4 {[%emt 0:00:12]} 42. Be4 {[%emt 0:00:00]} Re2 {[%emt 0:00:08]} 43. Bd3 {[%emt 0:00:06]} Rd2 {[%emt 0:00:03]} 44. Be4 {[%emt 0:00:01] Black must now prevent b6.} Re2 {[%emt 0:00:02] Prevents b6.} 45. Bd3 {[%emt 0:00:00]} Rd2 {[%emt 0:00:11]} 46. Be4 {[%emt 0:00:01] Threatens to win with b6.} Re2 {[%emt 0:00:05] Prevents b6.} 47. Bc2 {[%emt 0:00:09]} Bf3 {[%emt 0:00:06]} 48. Rc3 {[%emt 0:00:18]} Bb7 {[%emt 0:00:04]} 49. h3 {[%emt 0:00:03]} Kg5 {[%emt 0:00:02]} 50. Rc5+ {[%emt 0:00:08]} Kf4 {[%emt 0:00:01]} 51. Bxg6 $2 {[%emt 0:00:01][%mdl 8192] This costs White the game.} (51. Rc7 $11) 51... Rg2+ {[%emt 0:00:01]} 52. Kf1 {[%emt 0:00:01]} Rxg6 {[%emt 0:00:01]} 53. Rc4+ {[%emt 0:00:06]} Kg3 {[%emt 0:00:03]} (53... Be4 $142 54. Ke2 Rg2+ 55. Kd1 Rb2 56. Rc3 Rxb5 57. Ra3 Rb2 58. Kc1 Rc2+ 59. Kd1 Rg2 60. Rc3 Rg3 61. Rc8 Rxh3 62. Kd2 Rd3+ 63. Ke2 h3 64. Rh8 Bf5 65. Rh4+ Kg3 66. Rh6 h2 67. Rh8 Kg2 68. Rg8+ Rg3 69. Rh8 h1=Q 70. Rxh1 Kxh1 71. Kf1 Kh2 72. Ke2 Rd3 73. Ke1 Kg1 74. Ke2 Kg2 75. Ke1 Kf3 76. Kf1 Rd1#) 54. Rc3+ $19 {[%emt 0:00:03]} Kh2 {[%emt 0:00:01]} 55. Rc7 {[%emt 0:00:09]} Rb6 {[%emt 0:00:02] Weighted Error Value: White=0.38/Black=0.29 (precise)} 0-1

[Event "Romanian Rapid Open 2022"]
[Site "Sebes"]
[Date "2022.12.02"]
[Round "4.6"]
[White "Secheres, Adrian-Simion"]
[Black "Nevednichy, Vladislav"]
[Result "0-1"]
[ECO "D37"]
[WhiteElo "2365"]
[BlackElo "2499"]
[Annotator "TA"]
[PlyCount "78"]
[EventDate "2022.12.02"]
[EventType "rapid"]
[EventCountry "ROU"]
[SourceTitle "playchess.com"]
[Source "ChessBase"]
[SourceQuality "1"]
[TimeControl "600+5"]

{[%evp 14,78,28,27,24,8,27,18,18,17,41,34,50,42,46,27,64,68,81,59,83,75,96,88,105,91,102,93,102,95,112,93,94,62,63,50,88,-26,99,-16,-19,-25,-36,-37,-9,-22,14,-7,-18,-172,-183,-183,-166,-177,-178,-564,-564,-555,-558,-514,-452,-623,-596,-695,-677,-1210,-418]} 1. d4 {[%emt 0:00:03]} Nf6 {[%emt 0:00:01]} 2. c4 {[%emt 0:00:02]} e6 {[%emt 0:00:01]} 3. Nf3 {[%emt 0:00:05]} d5 {[%emt 0:00:01]} 4. Nc3 {[%emt 0:00:02]} Nbd7 {[%emt 0:00:01]} 5. Bf4 {[%emt 0:00:05]} dxc4 {[%emt 0:00:25]} 6. e3 {[%emt 0:00:04]} Nd5 {[%emt 0:00:01]} 7. Bxc4 {[%emt 0:00:04]} Nxf4 {[%emt 0:00:01]} 8. exf4 {[%emt 0:00:02][%cal Of4f5]} Nb6 {[%emt 0:00:02] Inhibits f5. 8...Nb6 is better than 8...Bd6. D37: Queen's Gambit Declined: 5 Bf4.} 9. O-O {[%emt 0:00:02]} c6 {[%emt 0:00:48] [#]} (9... Nxc4 $5 10. Qa4+ $8 c6 11. Qxc4 Be7 $11) 10. Bd3 $146 {[%emt 0:00:17]} ({Predecessor:} 10. Bb3 Be7 11. Ne5 O-O 12. Qd2 c5 13. Rad1 cxd4 14. Qe2 a5 15. Nb5 Bc5 16. Qe4 {1-0 (24) Lomaia,D (1946)-Bures,V (2119) Chess.com INT 2021}) 10... g6 {[%emt 0:00:03] The position is equal.} 11. Re1 {[%emt 0:00:30]} Be7 {[%emt 0:00:25]} 12. Ne4 {[%emt 0:00:23]} O-O {[%emt 0:00:10]} 13. Qe2 {[%emt 0:00:32]} a5 {[%emt 0:00:10]} 14. Rad1 {[%emt 0:00:24]} a4 {[%emt 0:00:02]} 15. a3 $1 {[%emt 0:00:01]} Ra5 {[%emt 0:00:03]} 16. Bb1 {[%emt 0:00:13]} Rb5 {[%emt 0:00:17]} 17. Ne5 {[%emt 0:00:18]} Rd5 {[%emt 0:00:13]} 18. Ba2 {[%emt 0:00:25]} Rb5 {[%emt 0:00:19]} (18... Rxd4 $2 19. Rxd4 Qxd4 20. Rd1 $18) 19. Rd3 {[%emt 0:00:58]} Kg7 {[%emt 0:00:03]} 20. g3 {[%emt 0:00:51]} (20. Qc2 {simplifies} f6 21. Nc4 Nxc4 22. Bxc4 Rf5 23. Nc3) 20... Nd5 {[%emt 0:00:16]} 21. h4 {[%emt 0:00:08]} f6 {[%emt 0:00:18]} 22. Nf3 {[%emt 0:00:14]} Bd7 {[%emt 0:00:30]} 23. Bc4 {[%emt 0:00:11]} Ra5 {[%emt 0:00:02]} 24. Nc3 {[%emt 0:00:32]} Re8 {[%emt 0:00:13]} 25. h5 {[%emt 0:00:16]} (25. Bxd5 $16 cxd5 26. h5) 25... Bf8 {[%emt 0:00:04]} ({Resist} 25... gxh5 26. Bxd5 exd5 27. Re3 $16) (25... Nxc3 $11 {keeps the balance.} 26. h6+ Kxh6 27. Rxc3 b5) 26. Ba2 {[%emt 0:00:15]} (26. hxg6 $16 hxg6 27. Ba2) 26... Nxc3 $11 {[%emt 0:00:04]} 27. Rxc3 {[%emt 0:00:02]} Rxh5 {[%emt 0:00:03]} 28. Re3 {[%emt 0:00:04]} Rb5 {[%emt 0:00:20][%cal Bh5b5,Bb5b6,Bb6b2][%mdl 32]} 29. Bc4 {[%emt 0:00:47]} Rb6 {[%emt 0:00:06]} 30. Qc2 {[%emt 0:00:01]} c5 {[%emt 0:00:34]} 31. d5 $2 {[%emt 0:00:23] [#] This costs White the game.} (31. Rd1 $11 Rd6 32. dxc5 Rxd1+ 33. Qxd1) 31... exd5 $19 {[%emt 0:00:05]} 32. Bxd5 {[%emt 0:00:02]} Rxe3 {[%emt 0:00:14]} 33. Rxe3 {[%emt 0:00:02]} Bf5 {[%emt 0:00:10][%cal Bd7f5,Bf5c2,Bc2b3,Bb3f7][%mdl 32]} 34. Qc4 {[%emt 0:00:10]} (34. Be4 {was the crucial defense.} Bxe4 35. Rxe4) 34... Rxb2 {[%emt 0:00:17] Black is clearly winning.} 35. Nh4 {[%emt 0:00:01]} Bc2 {[%emt 0:00:31] [#] Strongly threatening ...b5.} 36. Bf3 {[%emt 0:01:20]} Bb3 {[%emt 0:00:12]} 37. Qe4 {[%emt 0:00:18]} Bf7 {[%emt 0:00:35]} 38. Qxa4 {[%emt 0:00:35]} c4 {[%emt 0:00:09] Threatens to win with ...Bc5.} 39. Qa7 {[%emt 0:00:35] Prevents Bc5.} Qb6 {[%emt 0:00:12] Weighted Error Value: White=0.71/Black=0.18 (very precise)} (39... Qd2 $142 40. Re4 b6) 0-1

[Event "Romanian Rapid Open 2022"]
[Site "Sebes"]
[Date "2022.12.02"]
[Round "4.7"]
[White "Talu, Mircea"]
[Black "Dragomirescu, Robin-Alexandru"]
[Result "0-1"]
[ECO "E60"]
[WhiteElo "2327"]
[BlackElo "2337"]
[Annotator "TA"]
[PlyCount "124"]
[EventDate "2022.12.02"]
[EventType "rapid"]
[EventCountry "ROU"]
[SourceTitle "playchess.com"]
[Source "ChessBase"]
[SourceQuality "1"]
[TimeControl "600+5"]

{[%evp 11,124,0,0,0,39,40,45,49,45,0,0,4,10,8,13,6,12,15,33,13,29,25,17,19,18,-7,-7,-8,-15,-18,-15,-24,-17,-19,-10,-37,-40,-162,-39,-536,-533,-589,-579,-579,-566,-577,-571,-574,-518,-630,-632,-625,-624,-627,-416,-416,-408,-408,-408,-408,-408,-402,-401,-560,-401,-401,-401,-401,-399,-487,-464,-492,-468,-784,-777,-775,-713,-705,-555,-866,-845,-1061,-1000,-1782,-1758,-12841,-12842,-12842,-12839,-12838,-12832,-12841,-12838,-12845,-12845,-29992,-12846,-12847,-12844,-12845,-12845,-12845,-12844,-12845,-12844,-12844,-12843,-12844,-12844,-12845,-12845,-12845,-12844,-12845,-12845]} 1. Nf3 {[%emt 0:00:02]} Nf6 {[%emt 0:00:06]} 2. b3 {[%emt 0:00:03]} g6 {[%emt 0:00:05]} 3. Bb2 {[%emt 0:00:02]} Bg7 {[%emt 0:00:01]} 4. c4 {[%emt 0:00:02]} O-O {[%emt 0:00:03]} 5. g3 {[%emt 0:00:02]} d6 {[%emt 0:00:08]} 6. d4 {[%emt 0:00:09]} e5 {[%emt 0:00:18]} 7. dxe5 {[%emt 0:00:07] E60: King's Indian: Unusual lines and Fianchetto Variation without Nc3.} Ng4 {[%emt 0:01:22][%cal Rd6e5] 7...dxe5 might become the main line.} 8. Nc3 {[%emt 0:00:33]} dxe5 {[%emt 0:01:38][%cal Oe5e4] [#]} 9. Qxd8 $146 {[%emt 0:05:04] White is slightly better.} (9. h3 {with more complications.} e4 10. Qxd8 Rxd8 11. Ng5) ({Predecessor:} 9. h3 e4 10. Qxd8 Rxd8 11. Ng5 Nf6 12. Bg2 Re8 13. O-O-O Bh6 14. h4 Bd7 15. e3 {1-0 (30) Kurajica,B (2516)-Videnova,I (2305) Split 2013}) 9... Rxd8 {[%emt 0:00:01]} 10. Nd5 {[%emt 0:00:04]} (10. h3 $5 {[%cal Rh3g4]} e4 11. Ng5 $14 (11. Nxe4 $2 Bxb2 12. Rb1 Nf6 $19) (11. hxg4 exf3 12. exf3 Na6 $11)) 10... Na6 {[%emt 0:00:28]} 11. h3 {[%emt 0:01:00] Against e4} Nf6 {[%emt 0:01:03]} 12. Ne7+ {[%emt 0:00:29]} Kf8 {[%emt 0:00:20]} 13. Nxc8 {[%emt 0:00:06][%cal Of1g2]} Raxc8 {[%emt 0:00:03]} 14. Bg2 {[%emt 0:00:44]} (14. Bxe5 Nb4 15. Rc1 Nxa2 $15) 14... Nb4 {[%emt 0:04:50] [#] And now ...Nc2+ would win.} 15. O-O {[%emt 0:00:32]} (15. Bxe5 $2 {too greedy.} Nc2+ 16. Kf1 Nxa1 $19) 15... Nd7 {[%emt 0:00:34]} 16. Bc3 {[%emt 0:01:24] This pair of bishops is nice.} a5 {[%emt 0:00:12]} 17. a3 {[%emt 0:00:29]} Nc6 {[%emt 0:00:02]} 18. Ng5 {[%emt 0:00:24] Against e4} h6 {[%emt 0:00:07]} 19. Bxc6 {[%emt 0:00:02]} bxc6 {[%emt 0:00:03]} 20. Nf3 {[%emt 0:00:06][%cal Oa1d1]} e4 {[%emt 0:00:06][%csl LRc3,LRf3]} 21. Bxg7+ {[%emt 0:00:02]} Kxg7 {[%emt 0:00:02]} 22. Nd4 {[%emt 0:00:08]} Ne5 {[%emt 0:00:02]} 23. Rfd1 {[%emt 0:00:09]} Rb8 {[%emt 0:00:02]} 24. Rab1 {[%emt 0:00:14] Black keeps a firm grip on the game.} (24. b4 $15) 24... Rd6 {[%emt 0:00:11]} (24... a4 $19 {Threatens to win with ...axb3.} 25. b4 c5) 25. Kf1 $2 {[%emt 0:00:05][%mdl 8192] [#]} (25. c5 $15 Rd5 26. e3) 25... Rbd8 $1 $19 {[%emt 0:00:04]} 26. e3 {[%emt 0:00:06]} c5 {[%emt 0:00:02]} 27. b4 {[%emt 0:00:12]} axb4 {[%emt 0:00:08]} ({Not} 27... Nxc4 28. bxc5 Rd5 29. Rb7 $11) 28. axb4 {[%emt 0:00:00]} cxd4 {[%emt 0:00:02]} 29. c5 {[%emt 0:00:00]} Rd5 {[%emt 0:00:01] White must now prevent ...d3.} 30. exd4 {[%emt 0:00:00]} Rxd4 {[%emt 0:00:02]} 31. Rxd4 {[%emt 0:00:01]} Rxd4 {[%emt 0:00:01][%mdl 4096] Endgame KRN-KR} 32. b5 {[%emt 0:00:01]} Nd7 {[%emt 0:00:25]} 33. b6 {[%emt 0:00:03]} cxb6 {[%emt 0:00:06]} ({Don't do} 33... Nxc5 34. bxc7 $18) 34. cxb6 {[%emt 0:00:14]} Nb8 {[%emt 0:00:09]} 35. Ke2 {[%emt 0:00:02]} Rd3 {[%emt 0:00:04]} 36. b7 {[%emt 0:00:03]} Kf6 {[%emt 0:00:06]} 37. Rc1 {[%emt 0:00:08]} Rd7 {[%emt 0:00:03]} 38. Rb1 {[%emt 0:00:04]} Ke5 {[%emt 0:00:03]} 39. Rb5+ {[%emt 0:00:02]} Kd4 {[%emt 0:00:02]} 40. Rb1 {[%emt 0:00:04]} f5 {[%emt 0:00:11]} 41. h4 {[%emt 0:00:01]} Rd6 {[%emt 0:00:02] Inhibits Rb6.} 42. Rc1 {[%emt 0:00:15]} (42. h5 $142 gxh5 43. Rb5) 42... Rb6 {[%emt 0:00:09]} 43. Rc7 {[%emt 0:00:03]} Rb2+ {[%emt 0:00:01]} 44. Kf1 {[%emt 0:00:01]} Ke5 {[%emt 0:00:06]} 45. h5 {[%emt 0:00:06]} gxh5 {[%emt 0:00:03]} 46. Rh7 {[%emt 0:00:03]} h4 {[%emt 0:00:10] aiming for ...hxg3.} 47. gxh4 {[%emt 0:00:01]} Kf4 {[%emt 0:00:02]} 48. Rxh6 {[%emt 0:00:26]} Rxb7 {[%emt 0:00:04]} 49. h5 {[%emt 0:00:06]} Kg5 {[%emt 0:00:09]} 50. Rh8 {[%emt 0:00:02]} Nc6 {[%emt 0:00:03]} 51. Kg2 {[%emt 0:00:04]} Ne5 {[%emt 0:00:01]} 52. Kg3 {[%emt 0:00:06]} f4+ {[%emt 0:00:02]} 53. Kg2 {[%emt 0:00:01]} Ng4 {[%emt 0:00:07]} (53... Kh4 $142 54. Rg8 f3+ 55. Kh1 Ng4 56. Rxg4+ Kxg4 57. Kh2 Rh7 58. h6 Rxh6+ 59. Kg1 Rh4 60. Kf1 Rh1#) 54. Re8 {[%emt 0:00:03] Black is clearly winning.} Nf6 {[%emt 0:00:05]} 55. Re5+ {[%emt 0:00:02]} Kg4 {[%emt 0:00:02]} 56. Re6 {[%emt 0:00:08]} Kf5 {[%emt 0:00:05]} 57. Ra6 {[%emt 0:00:09]} Nxh5 {[%emt 0:00:03]} 58. Kh3 {[%emt 0:00:01]} Nf6 {[%emt 0:00:14]} 59. Ra5+ {[%emt 0:00:03]} Kg6 {[%emt 0:00:03]} 60. Re5 {[%emt 0:00:06]} Rd7 {[%emt 0:00:07]} 61. Kg2 {[%emt 0:00:11]} Rd5 {[%emt 0:00:02]} 62. Re7 {[%emt 0:00:04]} Kf5 {[%emt 0:00:01] Weighted Error Value: White=0.52/Black=0.19 (very precise)} 0-1

[Event "Romanian Rapid Open 2022"]
[Site "Sebes"]
[Date "2022.12.02"]
[Round "4.8"]
[White "Ileana, George"]
[Black "Filip, Andrei"]
[Result "1-0"]
[ECO "B41"]
[WhiteElo "2343"]
[BlackElo "2331"]
[Annotator "TA"]
[PlyCount "121"]
[EventDate "2022.12.02"]
[EventType "rapid"]
[EventCountry "ROU"]
[SourceTitle "playchess.com"]
[Source "ChessBase"]
[SourceQuality "1"]
[TimeControl "600+5"]

{[%evp 18,121,2,8,9,8,8,0,0,-45,0,-25,22,-74,-66,-110,-96,-100,-34,-48,-45,-56,0,0,0,-27,0,0,10,-68,-68,-68,-68,-68,-66,-131,-125,-119,-110,-120,-70,-91,-83,-78,-89,-81,0,-45,-47,-66,-10,-25,-33,-24,-25,-45,-45,-38,0,-102,-55,-72,-70,-76,14,22,17,0,43,38,275,244,282,44,51,45,294,301,29976,29977,29977,29978,29978,29979,29976,29976,29979,29982,29981,29982,29983,29983,29984,29985,29986,29987,29987,29988,29989,29990,29990,29989,29991,29992,29992,29991]} 1. e4 {[%emt 0:00:01]} c5 {[%emt 0:00:03]} 2. Nf3 {[%emt 0:00:02]} e6 {[%emt 0:00:02]} 3. d4 {[%emt 0:00:01]} cxd4 {[%emt 0:00:01]} 4. Nxd4 {[%emt 0:00:02]} a6 {[%emt 0:00:02]} 5. c4 {[%emt 0:00:01]} Nf6 {[%emt 0:00:04]} 6. Nc3 {[%emt 0:00:02]} Bb4 {[%emt 0:00:02]} 7. Bd3 {[%emt 0:00:17]} Nc6 {[%emt 0:01:24]} 8. Nxc6 {[%emt 0:00:10]} dxc6 {[%emt 0:00:17]} 9. O-O {[%emt 0:00:46]} e5 {[%emt 0:00:14]} 10. Qc2 {[%emt 0:00:09]} O-O {[%emt 0:00:15] B41: Sicilian: Kan Variation: 5 c4.} 11. a3 {[%emt 0:00:01]} Bc5 {[%emt 0:00:18]} 12. b4 {[%emt 0:00:38]} Bd4 {[%emt 0:00:18] The position is equal.} 13. Bg5 {[%emt 0:00:04]} Qe7 {[%emt 0:00:49]} (13... h6 $5 {[%cal Rh6g5]} 14. Bc1 Nh5 $15) 14. Rad1 {[%emt 0:00:31]} a5 {[%emt 0:00:19] [#]} (14... h6 $142 15. Bd2 Bg4) 15. Qb3 $146 {[%emt 0:00:15]} (15. Ne2 $1 $11 {remains equal.}) ({Predecessor:} 15. Ne2 axb4 16. axb4 c5 17. Nxd4 cxd4 18. c5 h6 19. Bd2 Be6 20. Ra1 Nd7 21. f4 {0-1 (51) Fernandez,M (1975)-Tavzarashvili,G (1692) Al Ain 2013}) 15... Bg4 {[%emt 0:00:58] Strongly threatening ...axb4.} 16. Rd2 {[%emt 0:00:03]} axb4 {[%emt 0:00:49]} 17. axb4 {[%emt 0:00:02]} Ra7 {[%emt 0:00:46]} (17... h6 $17 18. Bh4 g5) 18. h3 $15 {[%emt 0:00:06]} Bh5 {[%emt 0:00:02]} 19. Ra2 {[%emt 0:00:32]} Rfa8 {[%emt 0:00:24]} (19... Rxa2 $15 20. Nxa2 h6) 20. Rxa7 $11 {[%emt 0:00:33]} Rxa7 {[%emt 0:00:01]} 21. Kh1 {[%emt 0:00:26]} (21. g4 $5 {[%cal Rg4h5]}) 21... Bxc3 {[%emt 0:00:52]} 22. Qxc3 {[%emt 0:00:02]} Nxe4 {[%emt 0:00:12]} 23. Bxe7 {[%emt 0:00:43]} (23. Bxe4 $11 Qxg5 24. Qd3) 23... Nxc3 $15 {[%emt 0:00:02]} 24. Rc1 {[%emt 0:00:14] Prevents e4.} Ne2 {[%emt 0:00:47]} 25. Re1 {[%emt 0:01:09]} Nf4 {[%emt 0:00:04]} 26. Rxe5 {[%emt 0:00:34]} (26. Bf5 $15) 26... Nxd3 $17 {[%emt 0:00:16]} 27. Rxh5 {[%emt 0:00:02]} Nxf2+ $15 {[%emt 0:00:25][%mdl 4096] Endgame KRB-KRN} 28. Kh2 {[%emt 0:00:02]} Nd3 {[%emt 0:00:07]} (28... Ra2 $1 $17 29. Re5 Nd3) 29. Rh4 {[%emt 0:00:12] aiming for Rd4.} f6 {[%emt 0:00:43]} 30. Rd4 {[%emt 0:00:11] Against b5} Ne5 {[%emt 0:00:01]} 31. Bd6 {[%emt 0:00:29]} Ng6 {[%emt 0:00:47]} (31... Nf7 $1 $17) 32. b5 {[%emt 0:00:04]} Ra4 {[%emt 0:00:12]} 33. b6 {[%emt 0:00:10]} Kf7 {[%emt 0:00:06]} (33... Ra8 $1 $15) 34. Bc7 {[%emt 0:00:14]} Ke6 {[%emt 0:00:07]} 35. Rd8 {[%emt 0:00:16] Against Nf8} Rxc4 {[%emt 0:00:30]} 36. Rb8 {[%emt 0:00:01]} Rb4 {[%emt 0:00:01]} 37. Rxb7 {[%emt 0:00:02]} c5 {[%emt 0:00:01]} 38. Rb8 {[%emt 0:00:04]} (38. Bd8 $11) 38... Kd7 {[%emt 0:00:13]} (38... h5 $17 39. b7 Ne7) 39. Rg8 {[%emt 0:00:08]} c4 {[%emt 0:00:05]} 40. Rxg7+ {[%emt 0:00:14]} Kc6 {[%emt 0:00:06]} (40... Ne7 $1 $17 {Hoping for ...c3.} 41. Bf4 Rxb6 42. Rxh7 c3) 41. Bd8 $11 {[%emt 0:00:08]} Ne5 {[%emt 0:00:30]} 42. Rxh7 {[%emt 0:00:09] And now Rc7+ would win.} (42. Rc7+ {simplifies} Kd5 43. Bxf6 Rxb6 44. Bxe5 Kxe5 45. Rxc4 Kf6 46. Rc5) 42... Kd5 {[%emt 0:00:07]} 43. b7 {[%emt 0:00:56]} c3 $2 {[%emt 0:00:02]} ({Black should try} 43... Ke6 $1 $14) 44. Bxf6 $18 {[%emt 0:00:15] Threatens to win with Rh5.} c2 {[%emt 0:00:09] [#]} 45. Bg5 {[%emt 0:00:03] Against c1Q} (45. Rc7 $1 $18) 45... Kc6 $1 $14 {[%emt 0:00:05]} 46. Re7 {[%emt 0:00:30]} Nd3 {[%emt 0:00:04] [#] White stays focused until the end.} (46... Kd6 $14) 47. Re2 $1 $18 {[%emt 0:00:07]} Rb2 $2 {[%emt 0:00:05] [#]} (47... Rxb7 $18 48. Rxc2+ Kd5) 48. Rxc2+ $3 {[%emt 0:00:07][%mdl 512] White mates.} Kxb7 {[%emt 0:00:03]} 49. Rxb2+ {[%emt 0:00:05]} Nxb2 {[%emt 0:00:01] KB-KN} 50. Kg3 {[%emt 0:00:02]} Kc6 {[%emt 0:00:01]} 51. Kg4 {[%emt 0:00:05]} Kd6 {[%emt 0:00:00]} 52. Kf5 {[%emt 0:00:03]} Kd7 {[%emt 0:00:10]} 53. h4 {[%emt 0:00:02][%cal Bh3h4,Bh4h5,Bh5h6][%mdl 32]} Ke8 {[%emt 0:00:01]} 54. g4 {[%emt 0:00:03][%cal Bg2g4,Bg4g5,Bg5g6][%mdl 32]} Nc4 {[%emt 0:00:04]} 55. Bf4 {[%emt 0:00:02]} Kf7 {[%emt 0:00:01]} 56. g5 {[%emt 0:00:02]} Nb6 {[%emt 0:00:07]} 57. g6+ {[%emt 0:00:05]} Kg8 {[%emt 0:00:00]} 58. h5 {[%emt 0:00:01]} Nd5 {[%emt 0:00:01]} 59. Bg5 {[%emt 0:00:05]} Kg7 {[%emt 0:00:13]} 60. h6+ {[%emt 0:00:03]} Kg8 {[%emt 0:00:00]} 61. Bf6 {[%emt 0:00:04] Weighted Error Value: White=0.27 (precise) /Black=0.42} 1-0